bitfinex/quotes_BTCUSD_20251215
["timestamp","ask_amount","ask_price","bid_price","bid_amount"]
[1765798866873,1.86972178,89806.0,89805.0,1e-08]
[1765798867665,1.8140518,89806.0,89805.0,1e-08]
[1765798868061,1.63596579,89806.0,89805.0,1e-08]
[1765798868289,1.70354418,89806.0,89805.0,1e-08]
[1765798868517,1.76343029,89806.0,89805.0,1e-08]
[1765798868698,1.81910027,89806.0,89805.0,1e-08]
[1765798870133,1.76343029,89806.0,89805.0,1e-08]
[1765798870335,1.92960789,89806.0,89805.0,1e-08]
[1765798870845,1.87393791,89806.0,89805.0,1e-08]
[1765798871005,1.86972178,89806.0,89805.0,1e-08]
[1765798871586,1.9296578,89806.0,89805.0,1e-08]
[1765798871788,1.86972178,89806.0,89805.0,1e-08]
[1765798874013,1.92965799,89806.0,89805.0,1e-08]
[1765798875254,1.87398801,89806.0,89805.0,1e-08]
[1765798875452,0.56343801,89799.0,89798.0,1e-08]
[1765798875650,0.51345435,89785.0,89784.0,0.0004]
[1765798875819,0.56574657,89785.0,89784.0,0.0004]
[1765798876024,0.57020811,89785.0,89784.0,0.0004]
[1765798876226,0.760037,89785.0,89784.0,0.00082126]
[1765798876450,1.620237,89785.0,89784.0,0.00082126]
[1765798876845,1.67590698,89785.0,89784.0,0.00082126]
[1765798877290,1.621237,89785.0,89784.0,0.00482126]
[1765798877513,1.620237,89785.0,89784.0,0.00082126]
[1765798877775,1.67590698,89785.0,89784.0,0.00082126]
[1765798877956,1.620237,89785.0,89784.0,0.00082126]
[1765798878374,1.65017617,89785.0,89784.0,0.00082126]
[1765798878589,1.65117617,89785.0,89784.0,0.00082126]
[1765798878794,0.960337,89785.0,89784.0,0.00082126]
[1765798878946,0.99027617,89785.0,89784.0,0.00082126]
[1765798879126,0.960337,89785.0,89784.0,0.00082126]
[1765798879334,0.23398694,89749.0,89746.0,0.00776381]
[1765798879626,0.23398981,89748.0,89744.0,0.23399824]
[1765798879815,0.23398981,89748.0,89747.0,0.08896055]
[1765798880190,0.23398674,89749.0,89747.0,0.09007443]
[1765798880396,0.23398674,89749.0,89747.0,0.08896055]
[1765798880755,0.23093968,89749.0,89747.0,0.08896055]
[1765798880975,0.23193968,89749.0,89747.0,0.08896055]
[1765798882105,0.22284867,89747.0,89746.0,0.007]
[1765798882334,0.22286109,89742.0,89740.0,0.0004]
[1765798883693,0.22686109,89742.0,89740.0,0.0354]
[1765798884494,0.22686109,89742.0,89741.0,0.08896055]
[1765798885022,0.004,89742.0,89741.0,0.08896055]
[1765798885463,0.22286357,89741.0,89740.0,0.0164]
[1765798885668,0.51517644,89741.0,89740.0,0.0164]
[1765798885871,0.51517644,89741.0,89740.0,0.0004]
[1765798886087,0.51517644,89741.0,89740.0,0.00172472]
[1765798886773,0.51517644,89741.0,89740.0,0.00572472]
[1765798886954,0.51517644,89741.0,89740.0,0.00272472]
[1765798887362,0.51517644,89741.0,89740.0,0.00372472]
[1765798887724,0.51517644,89741.0,89740.0,0.00272472]
[1765798892183,0.62568406,89741.0,89740.0,0.00272472]
[1765798892405,1.62086481,89741.0,89740.0,0.00272472]
[1765798892652,1.56519483,89741.0,89740.0,0.00272472]
[1765798893520,1.51517644,89741.0,89740.0,0.00272472]
[1765798893717,0.53277644,89741.0,89740.0,0.00172472]
[1765798893921,0.53277644,89741.0,89740.0,0.00272472]
[1765798894132,0.53377644,89741.0,89740.0,0.00272472]
[1765798899060,0.58944642,89741.0,89740.0,0.00272472]
[1765798899265,0.53377644,89741.0,89740.0,0.00272472]
[1765798899738,0.58944642,89741.0,89740.0,0.00272472]
[1765798900627,0.53377644,89741.0,89740.0,0.00272472]
[1765798901043,1.53377644,89741.0,89740.0,0.00272472]
[1765798901716,1.58379483,89741.0,89740.0,0.00272472]
[1765798902331,1.63946481,89741.0,89740.0,1e-08]
[1765798903632,1.58379483,89741.0,89740.0,1e-08]
[1765798903843,1.6736324,89741.0,89740.0,1e-08]
[1765798904062,1.63946481,89741.0,89740.0,1e-08]
[1765798904273,1.63946481,89741.0,89725.0,0.0004]
[1765798904274,1.51360083,89726.0,89725.0,0.0004]
[1765798904471,1.58121922,89726.0,89725.0,0.0004]
[1765798904673,1.53120083,89726.0,89725.0,0.0004]
[1765798904882,1.5913356,89726.0,89725.0,0.0004]
[1765798905294,0.58568401,89726.0,89725.0,1e-08]
[1765798905508,1.64235399,89726.0,89725.0,1e-08]
[1765798905710,0.56929565,89716.0,89715.0,1e-08]
[1765798906406,0.56929565,89716.0,89694.0,0.0002]
[1765798906407,0.22297786,89695.0,89694.0,0.0002]
[1765798906597,0.22297786,89695.0,89684.0,0.00770807]
[1765798906598,0.51370273,89685.0,89684.0,0.00770807]
[1765798906809,0.22300273,89685.0,89684.0,0.00770807]
[1765798907017,0.22338514,89685.0,89684.0,0.00770807]
[1765798907227,0.25687685,89685.0,89684.0,0.00770807]
[1765798907430,0.22338514,89685.0,89684.0,0.00770807]
[1765798907621,0.24568765,89685.0,89684.0,0.00770807]
[1765798907757,0.24568765,89685.0,89684.0,0.01070807]
[1765798908800,0.24668765,89685.0,89684.0,0.01370807]
[1765798909044,0.24668765,89685.0,89684.0,0.00770807]
[1765798909045,0.24568765,89685.0,89684.0,0.00770807]
[1765798909241,0.24668765,89685.0,89684.0,0.01170807]
[1765798909502,0.24668765,89685.0,89684.0,0.01470807]
[1765798909832,0.24568765,89685.0,89684.0,0.00770807]
[1765798910025,0.24668765,89685.0,89684.0,0.01070807]
[1765798910183,0.24668765,89685.0,89684.0,0.00970807]
[1765798910184,0.24568765,89685.0,89684.0,0.00970807]
[1765798910391,0.24568765,89685.0,89684.0,0.01139554]
[1765798910593,0.24568765,89685.0,89684.0,0.00939554]
[1765798911023,0.24568765,89685.0,89684.0,0.01239554]
[1765798911917,0.24668765,89685.0,89684.0,0.01539554]
[1765798912524,0.24568765,89685.0,89684.0,0.01239554]
[1765798912742,0.22438514,89685.0,89684.0,0.01539554]
[1765798914498,0.00138241,89685.0,89684.0,0.01539554]
[1765798914888,0.00038241,89685.0,89684.0,0.01239554]
[1765798915091,0.00038241,89685.0,89684.0,0.03469606]
[1765798915301,0.00038241,89685.0,89684.0,0.03169606]
[1765798915511,0.00138241,89685.0,89684.0,0.01839554]
[1765798916729,0.00138241,89685.0,89684.0,0.04069606]
[1765798919647,0.00138241,89685.0,89684.0,0.03669606]
[1765798919873,0.00038241,89685.0,89684.0,0.03569606]
[1765798920074,0.00138241,89685.0,89684.0,0.04069606]
[1765798921489,0.00138241,89685.0,89684.0,0.26370127]
[1765798921688,0.00138241,89685.0,89684.0,0.24140075]
[1765798922667,0.00138241,89685.0,89684.0,0.25904075]
[1765798926089,0.22438514,89685.0,89684.0,0.01839554]
[1765798926392,0.22438514,89685.0,89684.0,0.03603554]
[1765798927205,0.00138241,89685.0,89684.0,0.25904075]
[1765798931364,0.00138241,89685.0,89684.0,0.03603554]
[1765798931633,0.00138241,89685.0,89684.0,0.25904075]
[1765798935098,0.00138241,89685.0,89684.0,0.03603554]
[1765798936129,0.22438514,89685.0,89684.0,0.01839554]
[1765798936339,0.22438514,89685.0,89684.0,0.03603554]
[1765798936971,0.00138241,89685.0,89684.0,0.03603554]
[1765798938348,0.00138241,89685.0,89684.0,0.25904075]
[1765798938911,0.00138241,89685.0,89684.0,0.03603554]
[1765798939129,0.22438514,89685.0,89684.0,0.03603554]
[1765798940168,0.22438514,89685.0,89684.0,0.01839554]
[1765798940370,0.22438514,89685.0,89684.0,0.03603554]
[1765798945568,0.00138241,89685.0,89684.0,0.03603554]
[1765798945992,0.22438514,89685.0,89684.0,0.03603554]
[1765798946830,0.00138241,89685.0,89684.0,0.03603554]
[1765798947182,0.00138241,89685.0,89684.0,0.25904075]
[1765798947467,0.00138241,89685.0,89684.0,0.03603554]
[1765798947740,0.00138241,89685.0,89684.0,0.25904075]
[1765798948562,0.22438514,89685.0,89684.0,0.03603554]
[1765798950717,0.22438514,89685.0,89684.0,0.01839554]
[1765798950926,0.51508514,89685.0,89684.0,0.01839554]
[1765798951748,0.51508514,89685.0,89684.0,0.01439554]
[1765798951967,0.51508514,89685.0,89684.0,0.01539554]
[1765798952386,0.51508514,89685.0,89684.0,0.01439554]
[1765798952797,0.51569801,89685.0,89684.0,0.01039554]
[1765798953212,0.73989801,89685.0,89684.0,0.01039554]
[1765798954244,1.51569801,89685.0,89684.0,0.01039554]
[1765798954449,0.61659801,89685.0,89684.0,0.01039554]
[1765798954652,0.51569801,89685.0,89684.0,0.00939554]
[1765798955060,0.51669801,89685.0,89684.0,0.00939554]
[1765798955682,1.51669801,89685.0,89684.0,0.00939554]
[1765798956310,1.51969801,89685.0,89684.0,0.00939554]
[1765798956726,1.57536799,89685.0,89684.0,0.00939554]
[1765798956898,1.60452847,89685.0,89684.0,0.00939554]
[1765798957132,1.66019845,89685.0,89684.0,0.00939554]
[1765798957338,1.60452847,89685.0,89684.0,0.00939554]
[1765798957955,1.66019845,89685.0,89684.0,0.00939554]
[1765798958157,1.60452847,89685.0,89684.0,0.00939554]
[1765798958359,1.66019845,89685.0,89684.0,0.00939554]
[1765798959193,1.66019845,89685.0,89684.0,1e-08]
[1765798959194,1.76505448,89685.0,89684.0,1e-08]
[1765798959409,1.76505448,89685.0,89681.0,0.00105321]
[1765798959410,1.56372858,89682.0,89681.0,1e-08]
[1765798959625,1.56372858,89682.0,89650.0,0.0002]
[1765798959626,1.51373754,89671.0,89650.0,0.0002]
[1765798959838,1.58704752,89671.0,89650.0,0.0002]
[1765798960262,1.53137754,89671.0,89650.0,0.0002]
[1765798960695,1.58139593,89671.0,89670.0,0.90905338]
[1765798960939,1.58539593,89671.0,89670.0,0.8786339]
[1765798961169,1.65141935,89671.0,89670.0,0.46789764]
[1765798961383,1.58539593,89671.0,89670.0,0.46789764]
[1765798961603,1.13845593,89671.0,89670.0,0.46789764]
[1765798961945,0.51973754,89671.0,89670.0,0.46789764]
[1765798962146,0.53137754,89671.0,89670.0,0.46689764]
[1765798962516,0.53837754,89671.0,89670.0,0.46789764]
[1765798962723,0.53437754,89671.0,89670.0,0.46689764]
[1765798963138,0.53737754,89671.0,89670.0,0.46789764]
[1765798963578,0.53437754,89671.0,89670.0,0.46789764]
[1765798963785,0.53137754,89671.0,89670.0,0.46689764]
[1765798963997,0.53437754,89671.0,89670.0,0.46689764]
[1765798964413,0.53137754,89671.0,89670.0,0.46689764]
[1765798964816,0.53237754,89671.0,89670.0,0.46689764]
[1765798965232,0.53337754,89671.0,89670.0,0.46689764]
[1765798965724,0.53337754,89671.0,89670.0,0.4673197]
[1765798966144,1.53337754,89671.0,89670.0,0.4673197]
[1765798971649,1.69390355,89671.0,89670.0,0.4673197]
[1765798972552,1.74957353,89671.0,89670.0,0.4673197]
[1765798973290,1.69390355,89671.0,89670.0,0.4673197]
[1765798973494,1.61690441,89671.0,89670.0,0.4673197]
[1765798973712,1.67257439,89671.0,89670.0,0.4673197]
[1765798974129,1.61690441,89671.0,89670.0,0.4673197]
[1765798974738,1.53337754,89671.0,89670.0,0.4673197]
[1765798974949,1.51573754,89671.0,89670.0,0.4673197]
[1765798975135,0.51573754,89671.0,89670.0,0.4673197]
[1765798975530,0.22503754,89671.0,89670.0,0.4673197]
[1765798975873,0.51573754,89671.0,89670.0,0.4673197]
[1765798983353,0.52611247,89671.0,89670.0,0.4673197]
[1765798986098,0.51573754,89671.0,89670.0,0.4673197]
[1765799001529,0.51473754,89671.0,89670.0,0.4673197]
[1765799001760,0.51373754,89671.0,89670.0,0.4673197]
[1765799002134,0.51373754,89671.0,89670.0,0.4693197]
[1765799002398,0.51373754,89671.0,89670.0,0.4713197]
[1765799003265,0.54723832,89671.0,89670.0,0.4693197]
[1765799003452,0.54723832,89671.0,89670.0,0.4673197]
[1765799003652,0.54723832,89671.0,89670.0,0.4683197]
[1765799003856,0.54723832,89671.0,89670.0,0.4693197]
[1765799004111,0.54723832,89671.0,89670.0,0.4683197]
[1765799004477,0.54723832,89671.0,89670.0,0.4693197]
[1765799009019,0.2907,89671.0,89670.0,0.4693197]
[1765799009281,0.01115137,89675.0,89671.0,0.22303562]
[1765799009483,0.03349558,89677.0,89670.0,0.4804717]
[1765799009484,0.03349558,89677.0,89672.0,0.23418463]
[1765799009686,0.22302823,89675.0,89673.0,0.24533561]
[1765799009901,0.22302823,89675.0,89672.0,0.23418463]
[1765799010112,0.03349524,89681.0,89672.0,0.23418463]
[1765799010113,0.01115075,89680.0,89675.0,0.01115137]
[1765799010322,0.2907,89677.0,89676.0,0.02230251]
[1765799010518,0.2907,89677.0,89676.0,0.22302511]
[1765799011355,0.001,89680.0,89679.0,0.22301765]
[1765799012856,0.2907,89683.0,89680.0,0.23416405]
[1765799013070,0.51408519,89685.0,89682.0,0.0111505]
[1765799013480,0.29108241,89685.0,89682.0,0.0111505]
[1765799013731,0.00038241,89685.0,89684.0,0.22300521]
[1765799014801,0.00038241,89685.0,89684.0,0.001]
[1765799015271,0.22338514,89685.0,89684.0,0.001]
[1765799015899,0.22338514,89685.0,89684.0,0.002]
[1765799016528,0.22300566,89684.0,89682.0,0.0111505]
[1765799016737,0.01153254,89685.0,89684.0,0.003]
[1765799016941,0.01253254,89685.0,89684.0,0.006]
[1765799017160,0.23553527,89685.0,89684.0,0.006]
[1765799017359,0.01253254,89685.0,89684.0,0.003]
[1765799017588,0.00138241,89685.0,89684.0,0.003]
[1765799018205,0.22438514,89685.0,89684.0,0.003]
[1765799018408,0.00138241,89685.0,89684.0,0.003]
[1765799019799,0.00138241,89685.0,89684.0,0.006]
[1765799020705,0.22438514,89685.0,89684.0,0.006]
[1765799022736,0.51669801,89685.0,89684.0,0.006]
[1765799023254,0.53433801,89685.0,89684.0,0.006]
[1765799023716,0.22302262,89677.0,89676.0,0.00024116]
[1765799025816,0.22402262,89677.0,89676.0,0.00624116]
[1765799026726,0.51472262,89677.0,89676.0,0.00624116]
[1765799026938,0.54822074,89677.0,89676.0,0.00624116]
[1765799027356,0.54822074,89677.0,89676.0,0.00324116]
[1765799028412,0.54722074,89677.0,89676.0,0.00024116]
[1765799028805,0.54722074,89677.0,89676.0,0.00124116]
[1765799031831,0.54722074,89677.0,89676.0,0.01374185]
[1765799041222,0.51372262,89677.0,89676.0,0.01374185]
[1765799050872,0.2907,89677.0,89676.0,0.01374185]
[1765799051077,0.51372262,89677.0,89676.0,0.01374185]
[1765799052572,0.22302262,89677.0,89676.0,0.01374185]
[1765799059253,0.51372262,89677.0,89676.0,0.01374185]
[1765799059688,0.51372262,89677.0,89676.0,0.01274185]
[1765799063524,0.51372262,89677.0,89676.0,0.01374185]
[1765799063762,0.51372262,89677.0,89676.0,0.01574185]
[1765799065568,0.51372262,89677.0,89676.0,0.01474185]
[1765799065780,0.51372262,89677.0,89676.0,0.01274185]
[1765799069586,0.51572262,89677.0,89676.0,0.01274185]
[1765799070250,0.51572262,89677.0,89676.0,0.01504185]
[1765799071800,0.5492222,89677.0,89676.0,0.01504185]
[1765799074134,0.58354237,89677.0,89676.0,0.01504185]
[1765799074347,0.73646779,89677.0,89676.0,0.01504185]
[1765799074549,1.73646779,89677.0,89676.0,0.01504185]
[1765799074750,1.76640696,89677.0,89676.0,0.01504185]
[1765799075004,1.73646779,89677.0,89676.0,0.01504185]
[1765799075211,1.79213777,89677.0,89676.0,0.01504185]
[1765799075419,1.73646779,89677.0,89676.0,0.01504185]
[1765799075667,1.76535627,89677.0,89676.0,0.01504185]
[1765799075848,1.82002625,89677.0,89676.0,0.01504185]
[1765799076368,1.79213777,89677.0,89676.0,0.01604185]
[1765799076576,1.73846779,89677.0,89676.0,0.01604185]
[1765799077413,1.79413777,89677.0,89676.0,0.01604185]
[1765799077543,1.79212303,89677.0,89676.0,0.01604185]
[1765799077755,1.66160201,89677.0,89676.0,0.01604185]
[1765799077957,1.66160201,89677.0,89676.0,0.01504185]
[1765799078181,1.71927199,89677.0,89676.0,0.01604185]
[1765799078395,1.66160201,89677.0,89676.0,0.01604185]
[1765799078607,1.66160201,89677.0,89676.0,0.01504185]
[1765799078805,1.66460201,89677.0,89676.0,0.01604185]
[1765799079014,1.72027199,89677.0,89676.0,0.01604185]
[1765799079209,1.71827199,89677.0,89676.0,0.01604185]
[1765799079416,1.72127199,89677.0,89676.0,0.01604185]
[1765799079620,0.72127199,89677.0,89676.0,0.01604185]
[1765799079828,1.72127199,89677.0,89676.0,0.01604185]
[1765799080459,1.66560201,89677.0,89676.0,0.01604185]
[1765799080663,1.72127199,89677.0,89676.0,0.01604185]
[1765799081287,1.77610963,89677.0,89676.0,0.01604185]
[1765799081499,1.83177961,89677.0,89676.0,0.01604185]
[1765799083014,1.77610963,89677.0,89676.0,0.01604185]
[1765799083520,1.66560201,89677.0,89676.0,0.01604185]
[1765799084173,1.72127199,89677.0,89676.0,0.01604185]
[1765799084793,1.71090185,89677.0,89676.0,0.01604185]
[1765799085006,1.65523187,89677.0,89676.0,0.01604185]
[1765799085225,1.71090185,89677.0,89676.0,0.01604185]
[1765799085636,1.83176807,89677.0,89676.0,0.01604185]
[1765799086043,1.77609809,89677.0,89676.0,1e-08]
[1765799086259,1.83176807,89677.0,89676.0,1e-08]
[1765799089493,1.77609809,89677.0,89676.0,1e-08]
[1765799089902,1.72126045,89677.0,89676.0,1e-08]
[1765799090097,1.66559047,89677.0,89676.0,1e-08]
[1765799090299,0.95624454,89677.0,89676.0,1e-08]
[1765799090541,0.82924454,89677.0,89676.0,1e-08]
[1765799090994,1.07364454,89677.0,89676.0,1e-08]
[1765799091541,0.89524454,89677.0,89676.0,1e-08]
[1765799091744,0.82814454,89677.0,89676.0,1e-08]
[1765799092057,0.79904454,89677.0,89676.0,1e-08]
[1765799092257,0.73938827,89677.0,89676.0,1e-08]
[1765799094333,0.79505825,89677.0,89676.0,1e-08]
[1765799094975,0.90556587,89677.0,89676.0,1e-08]
[1765799095381,0.73938827,89677.0,89676.0,1e-08]
[1765799095590,0.79505825,89677.0,89676.0,1e-08]
[1765799097429,0.82489098,89677.0,89676.0,1e-08]
[1765799097954,0.769221,89677.0,89676.0,1e-08]
[1765799098498,0.79505825,89677.0,89676.0,1e-08]
[1765799098659,0.84989589,89677.0,89676.0,1e-08]
[1765799099017,0.87977829,89677.0,89676.0,1e-08]
[1765799099222,0.84989589,89677.0,89676.0,1e-08]
[1765799100232,0.73938827,89677.0,89676.0,1e-08]
[1765799100678,0.79505825,89677.0,89676.0,1e-08]
[1765799101864,1.63738827,89677.0,89676.0,1e-08]
[1765799102845,1.23868827,89677.0,89676.0,1e-08]
[1765799103422,1.18866988,89677.0,89676.0,1e-08]
[1765799104731,0.58736988,89677.0,89676.0,1e-08]
[1765799104949,0.29666988,89677.0,89676.0,1e-08]
[1765799105144,0.27280369,89677.0,89676.0,1e-08]
[1765799105347,0.26244509,89677.0,89676.0,1e-08]
[1765799105864,0.55314509,89677.0,89676.0,1e-08]
[1765799106029,0.57701128,89677.0,89676.0,1e-08]
[1765799106412,0.55314509,89677.0,89676.0,1e-08]
[1765799106844,0.006,89677.0,89676.0,1e-08]
[1765799107051,0.006,89677.0,89676.0,0.02230252]
[1765799107252,0.006,89677.0,89676.0,1e-08]
[1765799107429,0.006,89677.0,89676.0,0.02230252]
[1765799107771,0.003,89677.0,89676.0,0.02230251]
[1765799108175,0.004,89677.0,89676.0,0.11326306]
[1765799108411,0.001,89677.0,89676.0,0.11326306]
[1765799108837,0.002,89677.0,89676.0,0.11326306]
[1765799109195,0.00038241,89685.0,89684.0,0.22300521]
[1765799110368,0.00038241,89685.0,89684.0,0.22600521]
[1765799110779,0.00138241,89685.0,89684.0,0.23000521]
[1765799114196,0.00038241,89685.0,89684.0,0.22600521]
[1765799114394,0.00138241,89685.0,89684.0,0.23100521]
[1765799114600,0.00138241,89685.0,89684.0,0.22800521]
[1765799114832,0.00138241,89685.0,89684.0,0.23100521]
[1765799116188,0.00138241,89685.0,89684.0,0.5717236]
[1765799116189,0.00058454,89685.0,89684.0,0.5717236]
[1765799116591,0.00058454,89685.0,89684.0,0.62739358]
[1765799116817,0.00058454,89685.0,89684.0,0.5717236]
[1765799117394,0.01114603,89718.0,89715.0,0.0111464]
[1765799117618,0.01114591,89719.0,89716.0,0.23407048]
[1765799117827,0.01114591,89719.0,89717.0,0.22292287]
[1765799118027,0.23406456,89719.0,89716.0,0.01114628]
[1765799118683,0.23406456,89719.0,89716.0,0.23407168]
[1765799118897,0.22292351,89717.0,89715.0,0.001]
[1765799119103,0.22294058,89710.0,89702.0,0.01114802]
[1765799119309,0.22294058,89710.0,89703.0,0.23410405]
[1765799119518,0.22294058,89710.0,89705.0,0.01114765]
[1765799119721,0.22294058,89710.0,89707.0,0.0111474]
[1765799119929,0.01114678,89712.0,89708.0,0.23409243]
[1765799120137,0.01114678,89712.0,89709.0,0.25168943]
[1765799120558,0.01114678,89712.0,89709.0,0.23408943]
[1765799120559,0.23408258,89712.0,89709.0,0.23408943]
[1765799120876,0.22293331,89713.0,89710.0,0.2340867]
[1765799121107,0.22293588,89712.0,89710.0,0.01114702]
[1765799121773,0.23407996,89713.0,89710.0,0.01114702]
[1765799121978,0.23407996,89713.0,89710.0,0.23408744]
[1765799122181,0.23407466,89715.0,89712.0,0.22293561]
[1765799122342,0.22293539,89713.0,89710.0,0.23408539]
[1765799122521,0.01114653,89714.0,89710.0,0.23408539]
[1765799122522,0.23407728,89714.0,89710.0,0.23408539]
[1765799122938,0.23407728,89714.0,89711.0,0.22293594]
[1765799123139,0.22293642,89712.0,89708.0,0.23409251]
[1765799123340,0.22293642,89712.0,89709.0,0.22294271]
[1765799123622,0.2340832,89712.0,89710.0,0.22294033]
[1765799123825,0.23407989,89713.0,89710.0,0.23408735]
[1765799124042,0.23407989,89713.0,89710.0,0.23508735]
[1765799124247,0.0111464,89715.0,89710.0,0.23508735]
[1765799124248,0.0111464,89715.0,89710.0,0.001]
[1765799124395,0.01114553,89722.0,89710.0,0.02329405]
[1765799124563,0.01114553,89722.0,89714.0,0.01114653]
[1765799124564,0.01114578,89720.0,89714.0,0.01114653]
[1765799124772,0.23406969,89717.0,89713.0,0.01114665]
[1765799124964,0.001,89714.0,89713.0,0.01114665]
[1765799125429,0.22292688,89716.0,89713.0,0.01114665]
[1765799125623,0.22292819,89715.0,89713.0,0.23407956]
[1765799125832,0.23407198,89716.0,89713.0,0.23407956]
[1765799125983,0.22292816,89715.0,89711.0,0.0111469]
[1765799126183,0.22293285,89714.0,89711.0,0.23408452]
[1765799126365,0.002,89714.0,89712.0,0.22293511]
[1765799126566,0.01114628,89716.0,89712.0,0.23408189]
[1765799126787,0.23407254,89716.0,89713.0,0.22293313]
[1765799126992,0.22292858,89715.0,89712.0,0.23408189]
[1765799127357,0.0111464,89715.0,89710.0,0.01114702]
[1765799127551,0.23407461,89715.0,89712.0,0.2229333]
[1765799127769,0.23607412,89716.0,89712.0,0.01114678]
[1765799127969,0.23607412,89716.0,89713.0,0.22293109]
[1765799128217,0.22291688,89720.0,89714.0,0.01114653]
[1765799128418,0.002,89714.0,89713.0,0.22293313]
[1765799128771,0.23406337,89721.0,89717.0,0.23406721]
[1765799129003,0.23406337,89721.0,89718.0,0.23406475]
[1765799129613,0.01114578,89720.0,89716.0,0.23406994]
[1765799129815,0.2229204,89719.0,89716.0,0.23406994]
[1765799130018,0.22292126,89718.0,89716.0,0.23406994]
[1765799130898,0.23406631,89719.0,89716.0,0.23406994]
[1765799131507,0.22291907,89719.0,89717.0,0.01114615]
[1765799131799,0.22291907,89719.0,89716.0,0.23407159]
[1765799131800,0.002,89718.0,89716.0,0.23407159]
[1765799132025,0.01114578,89720.0,89717.0,0.22292319]
[1765799132026,0.23406181,89720.0,89717.0,0.22292319]
[1765799132223,0.01114578,89720.0,89717.0,0.23406934]
[1765799132424,0.001,89719.0,89717.0,0.23406934]
[1765799132634,0.23406277,89720.0,89717.0,0.23406934]
[1765799132872,0.23406445,89719.0,89716.0,0.23507187]
[1765799133081,0.001,89718.0,89716.0,0.23507187]
[1765799133375,0.001,89718.0,89717.0,0.22292319]
[1765799134247,0.23405669,89722.0,89719.0,0.23406363]
[1765799134448,0.2907,89723.0,89720.0,0.03343735]
[1765799134781,0.51360876,89723.0,89720.0,0.03343735]
[1765799134995,0.22291161,89722.0,89720.0,0.03343735]
[1765799135204,0.2907,89723.0,89721.0,0.22291129]
[1765799135420,0.2907,89723.0,89722.0,0.02229107]
[1765799135848,0.2927,89723.0,89722.0,0.02229107]
[1765799136052,0.2907,89723.0,89722.0,0.24520183]
[1765799136258,0.2907,89723.0,89721.0,0.22291129]
[1765799136441,0.2907,89723.0,89722.0,0.02229107]
[1765799136894,0.2907,89723.0,89719.0,0.23406196]
[1765799136895,0.30184541,89723.0,89719.0,0.01114591]
[1765799137100,0.22291285,89722.0,89719.0,0.23406408]
[1765799137312,0.23406084,89721.0,89718.0,0.22292052]
[1765799137492,0.01114578,89720.0,89716.0,0.23406955]
[1765799137705,0.22291822,89719.0,89718.0,0.00011468]
[1765799139231,0.22391822,89719.0,89718.0,0.00011468]
[1765799139789,0.22391822,89719.0,89718.0,0.00111468]
[1765799143664,0.22292291,89718.0,89715.0,0.22292752]
[1765799143868,0.22292404,89717.0,89715.0,0.0111464]
[1765799144125,0.23407019,89717.0,89714.0,0.23407676]
[1765799144570,0.22292783,89716.0,89713.0,0.23407757]
[1765799144772,0.23407633,89715.0,89712.0,0.23408115]
[1765799144980,0.0111464,89715.0,89712.0,0.01114678]
[1765799145156,0.22293064,89714.0,89712.0,0.01114678]
[1765799145351,0.01114727,89708.0,89705.0,0.23409859]
[1765799145615,0.01114715,89709.0,89706.0,0.02229505]
[1765799145770,0.22294699,89708.0,89706.0,0.02229505]
[1765799146108,0.01114715,89709.0,89706.0,0.02229505]
[1765799146109,0.23409088,89709.0,89706.0,0.23409589]
[1765799146624,0.24049834,89728.0,89710.0,0.01114702]
[1765799146836,0.01114653,89714.0,89711.0,0.03344071]
[1765799147606,0.0111464,89715.0,89712.0,0.01114678]
[1765799147810,0.01114615,89717.0,89712.0,0.01114678]
[1765799147811,0.23407161,89717.0,89713.0,0.03343996]
[1765799148018,0.22293064,89715.0,89713.0,0.02229331]
[1765799150380,0.22294804,89707.0,89706.0,0.0176]
[1765799150728,0.23409461,89708.0,89706.0,0.0176]
[1765799150926,0.23409461,89708.0,89706.0,0.2405494]
[1765799151683,0.23409461,89708.0,89706.0,0.2425494]
[1765799151822,0.23409461,89708.0,89706.0,0.0196]
[1765799152021,0.01114727,89708.0,89706.0,0.0176]
[1765799152227,0.01114727,89708.0,89706.0,0.0186]
[1765799152426,0.22294804,89707.0,89706.0,0.0186]
[1765799153287,0.22294804,89707.0,89706.0,0.001]
[1765799153824,0.22295798,89703.0,89701.0,0.0176]
[1765799153970,0.23410331,89704.0,89701.0,0.02874814]
[1765799154152,0.23410331,89704.0,89702.0,0.22296013]
[1765799154353,0.23409821,89706.0,89702.0,0.01114802]
[1765799154578,0.23409821,89706.0,89705.0,0.08896055]
[1765799155950,0.23409821,89706.0,89705.0,0.08996055]
[1765799160494,0.22295052,89706.0,89705.0,0.08996055]
[1765799162339,0.23409784,89707.0,89705.0,0.08996055]
[1765799162822,0.23409784,89707.0,89705.0,0.31291347]
[1765799163626,0.23409784,89707.0,89705.0,0.001]
[1765799163627,0.51365052,89706.0,89705.0,0.001]
[1765799163843,0.51376522,89706.0,89705.0,0.001]
[1765799164066,0.51537809,89706.0,89705.0,0.001]
[1765799164275,0.01114889,89695.0,89692.0,0.02229853]
[1765799164473,0.01114852,89698.0,89692.0,0.02229853]
[1765799164474,0.22298013,89696.0,89692.0,0.02229853]
[1765799164666,0.22295593,89704.0,89691.0,0.01114939]
[1765799164667,0.22467922,89706.0,89701.0,0.01114814]
[1765799164871,0.00172757,89706.0,89703.0,0.01114789]
[1765799165073,0.0001147,89706.0,89705.0,0.08896055]
[1765799165322,0.0011147,89706.0,89705.0,0.31191356]
[1765799165742,0.0001147,89706.0,89705.0,0.31191356]
[1765799166123,0.0011147,89706.0,89705.0,0.31191356]
[1765799166658,0.0041147,89706.0,89705.0,0.31191356]
[1765799166863,0.0011147,89706.0,89705.0,0.31191356]
[1765799167381,0.0011147,89706.0,89705.0,0.08896055]
[1765799167630,0.22406522,89706.0,89705.0,0.08996055]
[1765799167834,0.22406522,89706.0,89705.0,0.001]
[1765799170083,0.51637809,89706.0,89705.0,0.001]
[1765799178209,0.23414961,89687.0,89684.0,0.25645578]
[1765799178419,0.23414961,89687.0,89684.0,0.01115026]
[1765799178629,0.23414961,89687.0,89683.0,0.23415794]
[1765799178848,0.23415289,89685.0,89682.0,0.25176005]
[1765799179075,0.22300029,89686.0,89683.0,0.23415567]
[1765799179261,0.2341503,89686.0,89683.0,0.01115038]
[1765799179469,0.01114864,89697.0,89688.0,0.01114976]
[1765799179688,0.00472757,89706.0,89688.0,0.01114976]
[1765799179689,0.01114814,89701.0,89696.0,0.08896055]
[1765799179854,0.01114839,89699.0,89697.0,0.02229728]
[1765799180472,0.23411863,89699.0,89697.0,0.02229728]
[1765799180680,0.22297041,89698.0,89697.0,0.02229728]
[1765799181029,0.01114914,89693.0,89690.0,0.01114951]
[1765799181207,0.01114914,89693.0,89691.0,0.08896055]
[1765799181423,0.23413204,89693.0,89691.0,0.08896055]
[1765799182613,0.23413204,89693.0,89683.0,0.02230077]
[1765799182614,0.22300273,89685.0,89683.0,0.02230077]
[1765799182821,0.23415346,89685.0,89677.0,0.03345339]